bitfinex/quotes_BTCUSD_20241102
["timestamp","ask_amount","ask_price","bid_price","bid_amount"]
[1730530080994,0.000821,69725.0,69724.0,0.54977113]
[1730530081201,0.000821,69725.0,69724.0,0.56377113]
[1730530081413,0.000821,69725.0,69724.0,0.54977113]
[1730530081839,0.000821,69725.0,69724.0,0.56377113]
[1730530082112,0.000821,69725.0,69724.0,0.54977113]
[1730530082304,0.000821,69725.0,69724.0,0.56377113]
[1730530082519,0.000821,69725.0,69724.0,0.70224843]
[1730530082739,0.000821,69725.0,69724.0,0.68824843]
[1730530083408,0.0043455,69733.0,69732.0,0.10533829]
[1730530083616,0.01778297,69733.0,69732.0,0.35286013]
[1730530085322,0.01778297,69733.0,69732.0,0.36686013]
[1730530085548,0.01778297,69733.0,69732.0,0.4180079]
[1730530086011,0.01778363,69733.0,69732.0,0.4320079]
[1730530086648,0.01778363,69733.0,69732.0,0.38086013]
[1730530088595,0.01778363,69733.0,69732.0,0.40958013]
[1730530088800,0.01778363,69733.0,69732.0,0.38086013]
[1730530089906,0.0043455,69733.0,69732.0,0.38086013]
[1730530090125,0.01778226,69733.0,69732.0,0.38086013]
[1730530090554,0.01860426,69733.0,69732.0,0.38086013]
[1730530093450,0.0051675,69733.0,69732.0,0.38086013]
[1730530093659,0.018607,69733.0,69732.0,0.38086013]
[1730530093906,0.01860709,69733.0,69732.0,0.38086013]
[1730530094875,0.01860709,69733.0,69732.0,0.54886013]
[1730530095103,0.0051675,69733.0,69732.0,0.68312607]
[1730530096297,0.0051675,69733.0,69732.0,0.66292672]
[1730530096746,0.0051675,69733.0,69732.0,0.63492672]
[1730530096973,0.0051675,69733.0,69732.0,0.64892672]
[1730530097209,0.0051675,69733.0,69732.0,0.66292672]
[1730530099925,0.0051675,69733.0,69732.0,0.66866472]
[1730530104616,0.0051675,69733.0,69732.0,0.80714202]
[1730530107157,0.0051675,69733.0,69732.0,0.79314202]
[1730530107370,0.0051675,69733.0,69732.0,0.77914202]
[1730530107788,0.0051675,69733.0,69732.0,0.79314202]
[1730530108853,0.0051675,69733.0,69732.0,0.80714202]
[1730530109132,0.0051675,69733.0,69732.0,0.65466472]
[1730530109565,0.0051675,69733.0,69732.0,0.66866472]
[1730530109799,0.0051675,69733.0,69732.0,0.90850749]
[1730530110013,0.0051675,69733.0,69732.0,0.82261606]
[1730530110439,0.0051675,69733.0,69732.0,0.89450749]
[1730530110669,0.0051675,69733.0,69732.0,0.88050749]
[1730530110891,0.0051675,69733.0,69732.0,0.89450749]
[1730530111549,0.0051675,69733.0,69732.0,0.90850749]
[1730530111754,0.0051675,69733.0,69732.0,1.04698479]
[1730530111988,0.0051675,69733.0,69732.0,1.06098479]
[1730530112188,0.0051675,69733.0,69732.0,1.16098479]
[1730530112399,0.0051675,69733.0,69732.0,1.14698479]
[1730530112609,0.0051675,69733.0,69732.0,1.16098479]
[1730530113684,0.0051675,69733.0,69732.0,0.92114202]
[1730530114104,0.0051675,69733.0,69732.0,0.96405933]
[1730530114316,0.0051675,69733.0,69732.0,0.82558203]
[1730530116718,0.0051675,69733.0,69732.0,0.825578]
[1730530117579,0.0051675,69733.0,69732.0,0.78266472]
[1730530117810,0.0051675,69733.0,69732.0,0.8255763]
[1730530118023,0.0051675,69733.0,69732.0,0.78266472]
[1730530118236,0.0051675,69733.0,69732.0,0.88685162]
[1730530118643,0.0051675,69733.0,69732.0,0.92976234]
[1730530119274,0.0051675,69733.0,69732.0,0.93176234]
[1730530119489,0.0051675,69733.0,69732.0,0.95322155]
[1730530120102,0.0051675,69733.0,69732.0,0.88885162]
[1730530122227,0.0051675,69733.0,69732.0,0.87485162]
[1730530122694,0.0051675,69733.0,69732.0,0.88885162]
[1730530122921,0.0051675,69733.0,69732.0,0.86085162]
[1730530123146,0.0051675,69733.0,69732.0,0.91121428]
[1730530123354,0.0051675,69733.0,69732.0,0.86085162]
[1730530123569,0.0051675,69733.0,69732.0,0.92521428]
[1730530124032,0.0051675,69733.0,69732.0,0.91121428]
[1730530124448,0.0051675,69733.0,69732.0,0.92521428]
[1730530124671,0.0051675,69733.0,69732.0,0.93921428]
[1730530125552,0.0051675,69733.0,69732.0,1.09298134]
[1730530125976,0.0051675,69733.0,69732.0,1.09299109]
[1730530129268,0.0051675,69733.0,69732.0,1.02861873]
[1730530131214,0.0051675,69733.0,69732.0,1.11444854]
[1730530131422,0.0051675,69733.0,69732.0,1.11244854]
[1730530132051,0.0051675,69733.0,69732.0,1.11444854]
[1730530132919,0.0051675,69733.0,69732.0,1.11244854]
[1730530133569,0.0051675,69733.0,69732.0,1.11444854]
[1730530134861,0.0051675,69733.0,69732.0,1.11244854]
[1730530135079,0.0051675,69733.0,69732.0,1.11444854]
[1730530135298,0.0051675,69733.0,69732.0,1.02661873]
[1730530137264,0.0051675,69733.0,69732.0,1.13390599]
[1730530139222,0.0051675,69733.0,69732.0,1.02661873]
[1730530143117,0.0051675,69733.0,69732.0,1.02678577]
[1730530147893,0.0051675,69733.0,69732.0,1.02674688]
[1730530149415,0.0051675,69733.0,69732.0,0.92255998]
[1730530151008,0.0051675,69733.0,69732.0,0.75455998]
[1730530152352,0.0051675,69733.0,69732.0,0.64566484]
[1730530152825,0.04541304,69733.0,69732.0,0.64566484]
[1730530153041,0.0051675,69733.0,69732.0,0.64566484]
[1730530155757,0.0051675,69733.0,69732.0,0.75473143]
[1730530156415,0.0051675,69733.0,69732.0,0.84077719]
[1730530156630,0.0051675,69733.0,69732.0,0.6317106]
[1730530156851,0.0847675,69733.0,69732.0,0.4288906]
[1730530157063,0.0847675,69733.0,69732.0,0.38586013]
[1730530157291,0.09821308,69733.0,69732.0,0.38586013]
[1730530157541,0.0847675,69733.0,69732.0,0.38586013]
[1730530158885,0.0847675,69733.0,69732.0,0.27179354]
[1730530159160,0.18950341,69733.0,69732.0,0.27179354]
[1730530159581,0.22978877,69733.0,69732.0,0.27179354]
[1730530159787,0.22978877,69733.0,69732.0,0.38086013]
[1730530160006,0.22978877,69733.0,69732.0,0.36686013]
[1730530160240,0.22978877,69733.0,69732.0,0.38086013]
[1730530160497,0.21635286,69733.0,69732.0,0.38086013]
[1730530160942,0.21635286,69733.0,69732.0,0.36686013]
[1730530161142,0.21635286,69733.0,69732.0,0.38086013]
[1730530161352,0.22978115,69733.0,69732.0,0.36686013]
[1730530161569,0.21635286,69733.0,69732.0,0.36686013]
[1730530161793,0.21635286,69733.0,69732.0,0.38086013]
[1730530161998,0.21635286,69733.0,69732.0,0.36686013]
[1730530162214,0.21635286,69733.0,69732.0,0.37786013]
[1730530162867,0.21635286,69733.0,69732.0,0.37486013]
[1730530163100,0.21635286,69733.0,69732.0,0.35286013]
[1730530163312,0.21635286,69733.0,69732.0,0.36486013]
[1730530163739,0.21635286,69733.0,69732.0,0.25579354]
[1730530163965,0.21635286,69733.0,69732.0,0.24379354]
[1730530164192,0.21635286,69733.0,69732.0,0.36286013]
[1730530164629,0.21635286,69733.0,69732.0,0.37386013]
[1730530164836,0.21635286,69733.0,69732.0,0.36286013]
[1730530165254,0.21635286,69733.0,69732.0,0.37286013]
[1730530168399,0.04545286,69733.0,69732.0,0.37286013]
[1730530168823,0.0051675,69733.0,69732.0,0.37286013]
[1730530169029,0.04542437,69733.0,69732.0,0.37286013]
[1730530169247,0.0051675,69733.0,69732.0,0.37286013]
[1730530169488,0.04542497,69733.0,69732.0,0.37286013]
[1730530169703,0.0051675,69733.0,69732.0,0.37286013]
[1730530169920,0.04542722,69733.0,69732.0,0.37286013]
[1730530170347,0.0242171,69733.0,69732.0,0.37286013]
[1730530170554,0.04542831,69733.0,69732.0,0.37286013]
[1730530179941,0.0051675,69733.0,69732.0,0.37286013]
[1730530181274,0.0051675,69733.0,69732.0,0.37255519]
[1730530185365,0.01860913,69733.0,69732.0,0.37255519]
[1730530190847,0.01860913,69733.0,69732.0,0.47061412]
[1730530191081,0.0051675,69733.0,69732.0,0.37755519]
[1730530191325,0.0051675,69733.0,69732.0,0.47425519]
[1730530194621,0.0051675,69733.0,69732.0,0.58332178]
[1730530194850,0.0051675,69733.0,69732.0,0.47425519]
[1730530198590,0.0051675,69733.0,69732.0,0.51720533]
[1730530199679,0.0051675,69733.0,69732.0,0.51724073]
[1730530200780,0.0051675,69733.0,69732.0,0.51724418]
[1730530201474,0.0051675,69733.0,69732.0,0.47425519]
[1730530201908,0.0051675,69733.0,69732.0,0.47999319]
[1730530205046,0.0051675,69733.0,69732.0,0.48163719]
[1730530205467,0.0051675,69733.0,69732.0,0.52462467]
[1730530208710,0.0051675,69733.0,69732.0,0.63368885]
[1730530208922,0.0051675,69733.0,69732.0,0.59070378]
[1730530209134,0.0051675,69733.0,69732.0,0.65518139]
[1730530210183,0.0051675,69733.0,69732.0,0.5461148]
[1730530211530,0.0051675,69733.0,69732.0,0.54610717]
[1730530212381,0.0051675,69733.0,69732.0,0.48163719]
[1730530214319,0.0051675,69733.0,69732.0,0.52461704]
[1730530214991,0.0051675,69733.0,69732.0,0.42791704]
[1730530215237,0.0051675,69733.0,69732.0,0.38493719]
[1730530215453,0.0051675,69733.0,69732.0,0.42791704]
[1730530215895,0.0051675,69733.0,69732.0,0.38493719]
[1730530216784,0.0051675,69733.0,69732.0,0.2651326]
[1730530216785,0.1019675,69733.0,69732.0,0.2651326]
[1730530217222,0.11540496,69733.0,69732.0,0.2651326]
[1730530218579,0.11540446,69733.0,69732.0,0.2651326]
[1730530221471,0.1019675,69733.0,69732.0,0.2651326]
[1730530221686,0.11540177,69733.0,69732.0,0.2651326]
[1730530225044,0.1019675,69733.0,69732.0,0.2651326]
[1730530225267,0.11539891,69733.0,69732.0,0.2651326]
[1730530226396,0.13966526,69733.0,69732.0,0.2651326]
[1730530226874,0.16130439,69733.0,69732.0,0.2651326]
[1730530228652,0.14787298,69733.0,69732.0,0.2651326]
[1730530228864,0.16130013,69733.0,69732.0,0.2651326]
[1730530231733,0.26168213,69733.0,69732.0,0.16505354]
[1730530232194,0.26167667,69733.0,69732.0,0.15505354]
[1730530232434,0.24825498,69733.0,69732.0,0.16405354]
[1730530232668,0.26167513,69733.0,69732.0,0.16405354]
[1730530232875,0.26167513,69733.0,69732.0,0.15405354]
[1730530233321,0.26167513,69733.0,69732.0,0.16205354]
[1730530235623,0.33105498,69733.0,69732.0,0.16205354]
[1730530235847,0.34447031,69733.0,69732.0,0.15709925]
[1730530237125,0.34947031,69733.0,69732.0,0.15709925]
[1730530239390,0.35484612,69733.0,69732.0,0.15709925]
[1730530243197,0.35484284,69733.0,69732.0,0.15709925]
[1730530245367,0.3548503,69733.0,69732.0,0.15709925]
[1730530247336,0.3548503,69733.0,69732.0,0.018644]
[1730530250908,0.3548503,69733.0,69732.0,0.010644]
[1730530251774,0.3548503,69733.0,69732.0,0.001644]
[1730530252020,0.3548503,69733.0,69732.0,0.002644]
[1730530252238,0.3548503,69733.0,69732.0,0.003644]
[1730530252451,0.33321117,69733.0,69732.0,0.003644]
[1730530253955,0.33321272,69733.0,69732.0,0.003644]
[1730530255058,0.33321382,69733.0,69732.0,0.003644]
[1730530261468,0.31980111,69733.0,69732.0,0.003644]
[1730530262115,0.33322933,69733.0,69732.0,0.003644]
[1730530262556,0.31980111,69733.0,69732.0,0.003644]
[1730530262988,0.33323261,69733.0,69732.0,0.003644]
[1730530264493,0.31980111,69733.0,69732.0,0.003644]
[1730530265617,0.33323816,69733.0,69732.0,0.003644]
[1730530269100,0.25043816,69733.0,69732.0,0.003644]
[1730530273348,0.29333605,69733.0,69732.0,0.003644]
[1730530273810,0.15363816,69733.0,69732.0,0.14209925]
[1730530276498,0.19661315,69733.0,69732.0,0.14209925]
[1730530277367,0.14020111,69733.0,69732.0,0.14209925]
[1730530277597,0.15364842,69733.0,69732.0,0.14209925]
[1730530279367,0.21811091,69733.0,69732.0,0.14209925]
[1730530280961,0.2046636,69733.0,69732.0,0.14209925]
[1730530281196,0.21811047,69733.0,69732.0,0.14209925]
[1730530281412,0.15364798,69733.0,69732.0,0.14209925]
[1730530282784,0.31249099,69733.0,69732.0,0.14209925]
[1730530283444,0.39854519,69733.0,69732.0,0.14209925]
[1730530284568,0.31249099,69733.0,69732.0,0.14209925]
[1730530284793,0.39854519,69733.0,69732.0,0.14209925]
[1730530285437,0.31249099,69733.0,69732.0,0.14209925]
[1730530286556,0.31235935,69733.0,69732.0,0.14209925]
[1730530287839,0.30810727,69733.0,69732.0,0.14209925]
[1730530288788,0.30810964,69733.0,69732.0,0.14209925]
[1730530289287,0.30810964,69733.0,69732.0,0.003644]
[1730530289288,0.39417599,69733.0,69732.0,0.003644]
[1730530289735,0.14939827,69733.0,69732.0,0.003644]
[1730530289960,0.39403262,69733.0,69732.0,0.003644]
[1730530290880,0.48903262,69733.0,69732.0,0.003644]
[1730530291515,0.40296889,69733.0,69732.0,0.003644]
[1730530291775,0.51054856,69733.0,69732.0,0.003644]
[1730530292000,0.40296889,69733.0,69732.0,0.003644]
[1730530295072,0.40296889,69733.0,69732.0,0.002644]
[1730530295292,0.40296889,69733.0,69732.0,0.001644]
[1730530297124,0.40496889,69733.0,69732.0,0.001644]
[1730530298750,0.48676889,69733.0,69732.0,0.001644]
[1730530298979,0.47131965,69733.0,69732.0,0.001644]
[1730530299201,0.48463554,69733.0,69732.0,0.001644]
[1730530299662,0.49808439,69733.0,69732.0,0.001644]
[1730530299888,0.48463538,69733.0,69732.0,0.001644]
[1730530301024,0.48463484,69733.0,69732.0,0.001644]
[1730530301459,0.48663484,69733.0,69732.0,0.001644]
[1730530301725,0.58663484,69733.0,69732.0,0.001644]
[1730530301944,0.63146298,69733.0,69732.0,0.001644]
[1730530302415,0.63346298,69733.0,69732.0,0.001644]
[1730530302620,0.61801467,69733.0,69732.0,0.001644]
[1730530302839,0.63345595,69733.0,69732.0,0.002644]
[1730530303034,0.63545595,69733.0,69732.0,0.001644]
[1730530303538,0.63545595,69733.0,69732.0,0.002644]
[1730530303755,0.47701845,69733.0,69732.0,0.002644]
[1730530303981,0.63419445,69733.0,69732.0,0.002644]
[1730530304213,0.63619445,69733.0,69732.0,0.003644]
[1730530304635,0.63219445,69733.0,69732.0,0.002644]
[1730530305052,0.63419445,69733.0,69732.0,0.003644]
[1730530305277,0.63419445,69733.0,69732.0,0.002644]
[1730530305924,0.63219445,69733.0,69732.0,0.001644]
[1730530306135,0.63419445,69733.0,69732.0,0.002644]
[1730530306349,0.63619445,69733.0,69732.0,0.003644]
[1730530306996,0.63419445,69733.0,69732.0,0.002644]
[1730530307224,0.63619445,69733.0,69732.0,0.003644]
[1730530307449,0.63219445,69733.0,69732.0,0.002644]
[1730530307660,0.63219445,69733.0,69732.0,0.001644]
[1730530307873,0.63019445,69733.0,69732.0,0.001644]
[1730530308546,0.629767,69733.0,69732.0,0.001644]
[1730530308750,0.631767,69733.0,69732.0,0.002644]
[1730530308959,0.631767,69733.0,69732.0,0.001644]
[1730530309183,0.633767,69733.0,69732.0,0.002644]
[1730530309388,0.635767,69733.0,69732.0,0.003644]
[1730530309596,0.76271021,69733.0,69732.0,0.002644]
[1730530309798,0.76271021,69733.0,69732.0,0.003644]
[1730530310006,0.7646965,69733.0,69732.0,0.003644]
[1730530311906,0.7876965,69733.0,69732.0,0.003644]
[1730530312745,0.65875329,69733.0,69732.0,0.003644]
[1730530313180,0.50200474,69733.0,69732.0,0.003644]
[1730530313827,0.50200343,69733.0,69732.0,0.003644]
[1730530314039,0.65871977,69733.0,69732.0,0.003644]
[1730530318192,0.6586525,69733.0,69732.0,0.003644]
[1730530323943,0.65866006,69733.0,69732.0,0.003644]
[1730530325479,0.65666006,69733.0,69732.0,0.003644]
[1730530325708,0.57486006,69733.0,69732.0,0.003644]
[1730530327070,0.47986006,69733.0,69732.0,0.003644]
[1730530327309,0.43503192,69733.0,69732.0,0.003644]
[1730530327567,0.41203192,69733.0,69732.0,0.003644]
[1730530327792,0.51943361,69733.0,69732.0,0.097844]
[1730530328463,0.51743361,69733.0,69732.0,0.096844]
[1730530328677,0.51343361,69733.0,69732.0,0.095844]
[1730530328895,0.51543361,69733.0,69732.0,0.095844]
[1730530329102,0.51843361,69733.0,69732.0,0.095844]
[1730530330408,0.51876031,69733.0,69732.0,0.095844]
[1730530331098,0.50532649,69733.0,69732.0,0.095844]
[1730530331334,0.51877123,69733.0,69732.0,0.095844]
[1730530331579,0.50532649,69733.0,69732.0,0.095844]
[1730530331787,0.51877326,69733.0,69732.0,0.095844]
[1730530333542,0.41135897,69733.0,69732.0,0.095844]
[1730530334885,0.3979122,69733.0,69732.0,0.095844]
[1730530335118,0.41135643,69733.0,69732.0,0.095844]
[1730530335338,0.42480017,69733.0,69732.0,0.095844]
[1730530335559,0.41135594,69733.0,69732.0,0.095844]
[1730530338743,0.41134873,69733.0,69732.0,0.095844]
[1730530339417,0.52041532,69733.0,69732.0,0.095844]
[1730530339873,0.52041532,69733.0,69732.0,0.001644]
[1730530341446,0.52241532,69733.0,69732.0,0.001644]
[1730530342352,0.52241477,69733.0,69732.0,0.001644]
[1730530342565,0.52041477,69733.0,69732.0,0.001644]
[1730530343250,0.52041508,69733.0,69732.0,0.001644]
[1730530347004,0.36345191,69733.0,69732.0,0.001644]
[1730530349471,0.52077093,69733.0,69732.0,0.001644]
[1730530349926,0.52077396,69733.0,69732.0,0.001644]
[1730530351448,0.36345494,69733.0,69732.0,0.001644]
[1730530354108,0.3634573,69733.0,69732.0,0.001644]
[1730530354626,0.40825358,69733.0,69732.0,0.001644]
[1730530360093,0.41025358,69733.0,69732.0,0.001644]
[1730530360856,0.56756672,69733.0,69732.0,0.001644]
[1730530361061,0.56756637,69733.0,69732.0,0.001644]
[1730530361872,0.56556637,69733.0,69732.0,0.001644]
[1730530365495,0.56756637,69733.0,69732.0,0.001644]
[1730530368367,0.69656622,69733.0,69732.0,0.001644]
[1730530371115,0.53931842,69733.0,69732.0,0.001644]
[1730530371346,0.56747425,69733.0,69732.0,0.001644]
[1730530371944,0.59047425,69733.0,69732.0,0.001644]
[1730530373950,0.58847425,69733.0,69732.0,0.001644]
[1730530374169,0.47940766,69733.0,69732.0,0.001644]
[1730530375723,0.47897355,69733.0,69732.0,0.001644]
[1730530376784,0.47897803,69733.0,69732.0,0.001644]
[1730530379902,0.47897759,69733.0,69732.0,0.001644]
[1730530380325,0.32219103,69733.0,69732.0,0.001644]
[1730530380536,0.47899739,69733.0,69732.0,0.001644]
[1730530382491,0.47899726,69733.0,69732.0,0.001644]
[1730530386909,0.46555167,69733.0,69732.0,0.001644]
[1730530387329,0.46755167,69733.0,69732.0,0.001644]
[1730530388573,0.48099714,69733.0,69732.0,0.001644]
[1730530389457,0.46755167,69733.0,69732.0,0.001644]
[1730530390737,0.44455167,69733.0,69732.0,0.001644]
[1730530392296,0.44255167,69733.0,69732.0,0.001644]
[1730530394513,0.45599718,69733.0,69732.0,0.001644]
[1730530397422,0.45599812,69733.0,69732.0,0.001644]
[1730530397653,0.4561229,69733.0,69732.0,0.001644]
[1730530398121,0.58520741,69733.0,69732.0,0.171144]
[1730530398552,0.694274,69733.0,69732.0,0.171144]
[1730530399874,0.694274,69733.0,69732.0,0.001644]
[1730530400298,0.58520741,69733.0,69732.0,0.001644]
[1730530400921,0.57176096,69733.0,69732.0,0.001644]
[1730530401171,0.58520715,69733.0,69732.0,0.001644]
[1730530402082,0.58532087,69733.0,69732.0,0.001644]
[1730530402306,0.58532087,69733.0,69732.0,0.171144]
[1730530402307,0.45323808,69733.0,69732.0,0.171144]
[1730530402531,0.4064418,69733.0,69732.0,0.171144]
[1730530402784,0.5160029,69733.0,69732.0,0.171144]
[1730530403025,0.5180029,69733.0,69732.0,0.171144]
[1730530403473,0.5140029,69733.0,69732.0,0.171144]
[1730530404552,0.4064418,69733.0,69732.0,0.171144]
[1730530404797,0.40643819,69733.0,69732.0,0.171144]
[1730530405224,0.4064383,69733.0,69732.0,0.171144]
[1730530405438,0.49247559,69733.0,69732.0,0.171144]
[1730530406494,0.48926607,69733.0,69732.0,0.171144]
[1730530406716,0.49294581,69733.0,69732.0,0.171144]
[1730530408523,0.39346583,69733.0,69732.0,0.171144]
[1730530408746,0.40690237,69733.0,69732.0,0.171144]
[1730530409430,0.24985579,69733.0,69732.0,0.171144]
[1730530411530,0.31435654,69733.0,69732.0,0.171144]
[1730530413543,0.24985579,69733.0,69732.0,0.171144]
[1730530414400,0.31436328,69733.0,69732.0,0.171144]
[1730530415707,0.24985579,69733.0,69732.0,0.171144]
[1730530418683,0.14985579,69733.0,69732.0,0.171144]
[1730530419579,0.15481822,69733.0,69732.0,0.171144]
[1730530421449,0.15481822,69733.0,69732.0,0.172144]
[1730530421896,0.15481822,69733.0,69732.0,0.173144]
[1730530423200,0.1548204,69733.0,69732.0,0.173144]
[1730530424516,0.1978139,69733.0,69732.0,0.173144]
[1730530427378,0.19781874,69733.0,69732.0,0.173144]
[1730530430649,0.15482524,69733.0,69732.0,0.173144]
[1730530431091,0.05444324,69733.0,69732.0,0.31159925]
[1730530431317,0.04099968,69733.0,69732.0,0.31159925]
[1730530433281,0.03599968,69733.0,69732.0,0.31159925]
[1730530433492,0.04099968,69733.0,69732.0,0.31159925]
[1730530435696,0.14138168,69733.0,69732.0,0.31159925]
[1730530437202,0.04099968,69733.0,69732.0,0.31159925]
[1730530438095,0.08437291,69735.0,69732.0,0.31159925]
[1730530438312,0.100381,69734.0,69733.0,0.13845525]
[1730530439877,0.100381,69734.0,69733.0,0.23795525]
[1730530441237,0.101203,69734.0,69733.0,0.23795525]
[1730530441458,0.11465269,69734.0,69733.0,0.23795525]
[1730530443706,0.1146521,69734.0,69733.0,0.23795525]
[1730530445867,0.12657162,69734.0,69733.0,0.23795525]
[1730530447297,0.12657183,69734.0,69733.0,0.23795525]
[1730530447525,0.12657183,69734.0,69733.0,0.13845525]
[1730530447783,0.02619083,69734.0,69733.0,0.46135348]
[1730530448011,0.02619083,69734.0,69733.0,0.45178689]
[1730530448233,0.01427131,69734.0,69733.0,0.45178689]
[1730530448463,0.000822,69734.0,69733.0,0.45178689]
[1730530448686,0.01425996,69734.0,69733.0,0.45178689]
[1730530449133,0.01425996,69734.0,69733.0,0.46778689]
[1730530451374,0.01425996,69734.0,69733.0,0.43569154]
[1730530452673,0.01425996,69734.0,69733.0,0.54475813]
[1730530452895,0.000822,69734.0,69733.0,0.54475813]
[1730530453113,0.000822,69734.0,69733.0,0.54640213]
[1730530466820,0.000822,69734.0,69733.0,0.55140213]
[1730530475618,0.01425945,69734.0,69733.0,0.55140213]
[1730530477726,0.01426427,69734.0,69733.0,0.55140213]
[1730530479872,0.01426427,69734.0,69733.0,0.61986855]
[1730530481603,0.0142719,69734.0,69733.0,0.61986855]
[1730530482043,0.01427189,69734.0,69733.0,0.61986855]
[1730530485137,0.01427189,69734.0,69733.0,0.55140213]
[1730530485556,0.01427145,69734.0,69733.0,0.55140213]
[1730530489159,0.000822,69734.0,69733.0,0.55140213]
[1730530489512,0.01427058,69734.0,69733.0,0.55140213]
[1730530493037,0.000822,69734.0,69733.0,0.55140213]
[1730530493250,0.01427048,69734.0,69733.0,0.76761025]
[1730530493447,0.000822,69734.0,69733.0,1.01587289]
[1730530493632,0.000822,69734.0,69733.0,0.93002491]
[1730530494074,0.000822,69734.0,69733.0,1.01587289]
[1730530494476,0.000822,69734.0,69733.0,0.92965058]
[1730530494681,0.000822,69734.0,69733.0,1.01560656]
[1730530495057,0.000822,69734.0,69733.0,0.92965058]
[1730530495561,0.000822,69734.0,69733.0,1.03709556]
[1730530495765,0.000822,69734.0,69733.0,0.92965058]
[1730530496381,0.000822,69734.0,69733.0,1.01556438]
[1730530499181,0.000822,69734.0,69733.0,1.01498785]
[1730530499345,0.000822,69734.0,69733.0,0.92908829]
[1730530500854,0.000822,69734.0,69733.0,0.71288017]
[1730530502595,0.000822,69734.0,69733.0,0.77729255]
[1730530503993,0.000822,69734.0,69733.0,0.59934252]
[1730530504177,0.000822,69734.0,69733.0,0.55640213]
[1730530504374,0.000822,69734.0,69733.0,0.48000213]
[1730530505043,0.000822,69734.0,69733.0,0.38050213]
[1730530507246,0.000822,69734.0,69733.0,0.27143554]
[1730530507467,0.000822,69734.0,69733.0,0.26643554]
[1730530510680,0.000822,69734.0,69733.0,0.29514554]
[1730530510898,0.000822,69734.0,69733.0,0.26643554]
[1730530526793,0.000822,69734.0,69733.0,0.35953554]
[1730530527588,0.000822,69734.0,69733.0,0.46860213]
[1730530527991,0.000822,69734.0,69733.0,0.35953554]
[1730530528223,0.000822,69734.0,69733.0,0.61207943]
[1730530528546,0.000822,69734.0,69733.0,0.67649828]
[1730530528756,0.000822,69734.0,69733.0,0.83306398]
[1730530529174,0.000822,69734.0,69733.0,1.14843665]
[1730530529598,0.000822,69734.0,69733.0,1.14843391]
[1730530529812,0.000822,69734.0,69733.0,1.4590005]
[1730530530027,0.000822,69734.0,69733.0,1.54689261]
[1730530530237,0.000822,69734.0,69733.0,1.4610005]
[1730530530443,0.000822,69734.0,69733.0,1.39623824]
[1730530530864,0.000822,69734.0,69733.0,1.41694824]
[1730530531072,0.000822,69734.0,69733.0,1.53607641]
[1730530531277,0.000822,69734.0,69733.0,1.52807641]
[1730530531489,0.000822,69734.0,69733.0,1.39923824]
[1730530531686,0.000822,69734.0,69733.0,1.52807641]
[1730530532121,0.000822,69734.0,69733.0,1.38523824]
[1730530532339,0.000822,69734.0,69733.0,1.39923824]
[1730530532553,0.000822,69734.0,69733.0,1.35493391]
[1730530532779,0.000822,69734.0,69733.0,1.4640005]
[1730530532994,0.000822,69734.0,69733.0,1.41320218]
[1730530533672,0.000822,69734.0,69733.0,1.36693391]
[1730530534321,0.000822,69734.0,69733.0,1.4760005]
[1730530534538,0.000822,69734.0,69733.0,1.36693391]
[1730530534787,0.000822,69734.0,69733.0,1.36734827]
[1730530535837,0.000822,69734.0,69733.0,1.47641486]
[1730530536632,0.000822,69734.0,69733.0,1.36734827]
[1730530538085,0.000822,69734.0,69733.0,1.36307468]
[1730530538224,0.000822,69734.0,69733.0,1.36303882]
[1730530538433,0.000822,69734.0,69733.0,1.47210541]
[1730530538662,0.000822,69734.0,69733.0,1.47010541]
[1730530538861,0.000822,69734.0,69733.0,1.47210541]
[1730530540459,0.000822,69734.0,69733.0,1.36303882]
[1730530542178,0.000822,69734.0,69733.0,1.20809736]
[1730530543888,0.000822,69734.0,69733.0,1.20609736]
[1730530544088,0.000822,69735.0,69734.0,0.24333529]
[1730530544326,0.000822,69735.0,69734.0,0.52026784]
[1730530544531,0.000822,69735.0,69734.0,0.89562147]
[1730530544744,0.000822,69735.0,69734.0,0.89762147]
[1730530545574,0.000822,69735.0,69734.0,0.92562147]
[1730530546458,0.000822,69735.0,69734.0,0.92362147]
[1730530546820,0.000822,69735.0,69734.0,1.07893003]
[1730530547988,0.000822,69735.0,69734.0,0.92362147]
[1730530549517,0.000822,69735.0,69734.0,0.91862147]
[1730530549728,0.000822,69735.0,69734.0,0.92362147]
[1730530551236,0.000822,69735.0,69734.0,0.92935847]
[1730530551452,0.000822,69735.0,69734.0,0.92435847]
[1730530551664,0.000822,69735.0,69734.0,0.92935847]
[1730530552214,0.000822,69735.0,69734.0,0.92435847]
[1730530552445,0.000822,69735.0,69734.0,0.92935847]
[1730530552809,0.000822,69735.0,69734.0,0.93390186]
[1730530554114,0.000822,69735.0,69734.0,0.92890186]
[1730530554293,0.000822,69735.0,69734.0,0.93390186]
[1730530554849,0.000822,69735.0,69734.0,1.01504186]
[1730530555063,0.000822,69735.0,69734.0,0.93390186]
[1730530556712,0.000822,69735.0,69734.0,1.19622819]
[1730530557144,0.000822,69735.0,69734.0,1.30529478]
[1730530557566,0.000822,69735.0,69734.0,1.28692819]
[1730530558397,0.000822,69735.0,69734.0,1.28192819]
[1730530558608,0.000822,69735.0,69734.0,1.28692819]
[1730530558936,0.000822,69735.0,69734.0,1.28357219]
[1730530559342,0.000822,69735.0,69734.0,1.28857219]
[1730530560213,0.000822,69735.0,69734.0,1.28557219]
[1730530560359,0.000822,69735.0,69734.0,1.29057219]
[1730530560758,0.000822,69735.0,69734.0,1.29051655]
[1730530560959,0.000822,69735.0,69734.0,1.28851655]
[1730530563300,0.000822,69735.0,69734.0,1.28351655]
[1730530563494,0.000822,69735.0,69734.0,1.33278556]
[1730530563725,0.000822,69735.0,69734.0,1.33478556]
[1730530564480,0.000822,69735.0,69734.0,1.22771196]
[1730530564696,0.000822,69735.0,69734.0,1.33478556]
[1730530565430,0.000822,69735.0,69734.0,1.32978556]
[1730530565635,0.000822,69735.0,69734.0,1.33478556]
[1730530566044,0.000822,69735.0,69734.0,1.33278556]
[1730530567655,0.000822,69735.0,69734.0,1.22571196]
[1730530567860,0.000822,69735.0,69734.0,1.22771196]
[1730530569085,0.000822,69735.0,69734.0,1.22779766]
[1730530571545,0.000822,69735.0,69734.0,1.33686425]
[1730530571747,0.000822,69735.0,69734.0,1.22779766]
[1730530572338,0.000822,69735.0,69734.0,1.22579766]
[1730530572550,0.000822,69735.0,69734.0,1.33686425]
[1730530573132,0.000822,69735.0,69734.0,1.22779766]
[1730530573759,0.000822,69735.0,69734.0,1.22811436]
[1730530574983,0.000822,69735.0,69734.0,1.2280097]
[1730530575385,0.000822,69735.0,69734.0,1.33707629]